Workbook

Sheet MOUVEMENT DES STOCKS
D5: ACTION
D7: ORIGINE
B9: DATE D'ENTREE | F9: DATE DE SORTIE
B11: PRODUIT | F11: PRODUIT
B13: REFERENCE | F13: REFERENCE
B15: N° LOT | F15: N° LOT
B17: CONSOM_SAC | F17: SORTIE_ (kg)
B19: ENTREE_CARTON | F19: PERTE_PROD
B21: ENTREE_kg | F21: DATE DE RETOUR
B23: PERTE_INJ | F23: QTE RETOURNEE_(kg)

Sheet JOURNAL DES STOCKS
E2: Portoirs/carton | G2: 200
E3: Poids (kg)Bouchon = | G3: 0.0006
E4: Poids (kg) tube = | G4: 0.002
E5: =IF(D5="","",D5/$G$4) ->  | K5: =IF(J5="","",J5/$G$4) -> 
K12: =IF(C12="SORTIE","",IF(C12="RETOUR","",IF(E12="TPP",J12/$G$4,IF(E12="BC",J12/$G$3,IF(J12="",""))))) -> 
A15: ACTION | B15: DATE_ENTREE | C15: REFERENCE | D15: PRODUIT | E15: N° LOT | F15: CONSOM_SAC | G15: ENTREE_CARTON | H15: ENTREE_kg | I15: ENTREE_U | J15: PERTE_INJ | K15: ORIGINE | L15: DATE DE SORTIE | M15: SORTIE_CARTON | N15: SORTIE_kg | O15: SORTIE_U | P15: PERTE_PROD | Q15: DATE_RETOUR | R15: RETOUR_kg | S15: RETOUR_CARTON | T15: RETOUR_U
A16: ENTREE | B16: 2018-05-28 | C16: BC | D16: Bouchons Verts | E16: BV280518A | F16: 0.5 | H16: 11.752 | I16: =IF(A16="SORTIE","",IF(A16="RETOUR","",IF(C16="TPP",H16/$G$4,IF(C16="BC",H16/$G$3,IF(C16="PR",G16*$G$2))))) -> 19586.66667 | K16: INJ PLASTIQUE | O16: =IF(A16="ENTREE","",IF(A16="RETOUR","",IF(C16="TPP",N16/$G$4,IF(C16="BC",N16/$G$3,IF(C16="PR",M16*$G$2))))) ->  | T16: =IF(A16="ENTREE","",IF(A16="SORTIE","",IF(C16="TPP",R16/$G$4,IF(C16="BC",R16/$G$3,IF(C16="PR",S16*$G$2))))) -> 
A17: ENTREE | B17: 2018-05-28 | C17: TPP | D17: Tubes PP | E17: TPP280518B | F17: 6 | G17: 18 | H17: 131.4 | I17: 65700 | K17: INJ PLASTIQUE
A18: ENTREE | B18: 2018-05-28 | C18: TPP | D18: Tubes PP | E18: TPP280518A | F18: 3 | G18: 9 | H18: 65.7 | I18: 32850 | K18: INJ PLASTIQUE
A19: ENTREE | B19: 2018-05-27 | C19: BC | D19: Bouchons Verts | E19: BV270518B | F19: 1 | H19: 25.4 | I19: 42333.33333 | K19: INJ PLASTIQUE
A20: ENTREE | B20: 2018-05-27 | C20: BC | D20: Bouchons Verts | E20: BV270518A | F20: 0.5 | H20: 12.126 | I20: 20210 | K20: INJ PLASTIQUE
A21: ENTREE | B21: 2018-05-27 | C21: TPP | D21: Tubes PP | E21: TPP270518B | F21: 6 | G21: 18 | H21: 131.4 | I21: 65700 | K21: INJ PLASTIQUE
A22: ENTREE | B22: 2018-05-27 | C22: TPP | D22: Tubes PP | E22: TPP270518A | F22: 4 | G22: 9 | H22: 65.7 | I22: 32850 | K22: INJ PLASTIQUE
A23: ENTREE | B23: 2018-05-26 | C23: BC | D23: Bouchons Verts | E23: BV260518B | F23: 1 | H23: 24.056 | I23: 40093.33333 | K23: INJ PLASTIQUE
A24: ENTREE | B24: 2018-05-26 | C24: BC | D24: Bouchons Verts | E24: BV260518A | F24: 0.5 | H24: 14.058 | I24: 23430 | K24: INJ PLASTIQUE
A25: ENTREE | B25: 2018-05-26 | C25: TPP | D25: Tubes PP | E25: TPP260518B | F25: 6 | G25: 18 | H25: 131.4 | I25: 65700 | K25: INJ PLASTIQUE
A26: ENTREE | B26: 2018-05-26 | C26: TPP | D26: Tubes PP | E26: TPP260518A | F26: 4 | G26: 10 | H26: 73 | I26: 36500 | K26: INJ PLASTIQUE
A27: ENTREE | B27: 2018-05-25 | C27: BC | D27: Bouchons Verts | E27: BV250518B | F27: 1 | H27: 26.108 | I27: 43513.33333 | K27: INJ PLASTIQUE
A28: ENTREE | B28: 2018-05-25 | C28: BC | D28: Bouchons Verts | E28: BV250518A | F28: 0.5 | H28: 12.418 | I28: 20696.66667 | K28: INJ PLASTIQUE
A29: ENTREE | B29: 2018-05-25 | C29: TPP | D29: Tubes PP | E29: TPP250518B | F29: 6 | G29: 18 | H29: 131.4 | I29: 65700 | K29: INJ PLASTIQUE
A30: ENTREE | B30: 2018-05-25 | C30: TPP | D30: Tubes PP | E30: TPP250518A | F30: 4 | G30: 10 | H30: 73 | I30: 36500 | K30: INJ PLASTIQUE
A31: ENTREE | B31: 2018-05-24 | C31: BC | D31: Bouchons Verts | E31: BV240518B | F31: 1 | H31: 25.796 | I31: 42993.33333 | K31: INJ PLASTIQUE
A32: ENTREE | B32: 2018-05-24 | C32: BC | D32: Bouchons Verts | E32: BV240518A | F32: 0.5 | H32: 12.724 | I32: 21206.66667 | K32: INJ PLASTIQUE
A33: ENTREE | B33: 2018-05-24 | C33: TPP | D33: Tubes PP | E33: TPP240518B | F33: 6 | G33: 19 | H33: 138.7 | I33: 69350 | K33: INJ PLASTIQUE
A34: ENTREE | B34: 2018-05-24 | C34: TPP | D34: Tubes PP | E34: TPP240518A | F34: 4 | G34: 9 | H34: 65.7 | I34: 32850 | K34: INJ PLASTIQUE
A35: ENTREE | B35: 2018-05-23 | C35: BC | D35: Bouchons Verts | E35: BV230518B | F35: 1 | H35: 24.94 | I35: 41566.66667 | K35: INJ PLASTIQUE
A36: ENTREE | B36: 2018-05-23 | C36: BC | D36: Bouchons Verts | E36: BV230518A | F36: 0.5 | H36: 12.77 | I36: 21283.33333 | K36: INJ PLASTIQUE
A37: ENTREE | B37: 2018-05-23 | C37: TPP | D37: Tubes PP | E37: TPP230518B | F37: 6 | G37: 19 | H37: 138.7 | I37: 69350 | K37: INJ PLASTIQUE
A38: ENTREE | B38: 2018-05-23 | C38: TPP | D38: Tubes PP | E38: TPP230518A | F38: 3 | G38: 10 | H38: 73 | I38: 36500 | K38: INJ PLASTIQUE
A39: ENTREE | B39: 2018-05-22 | C39: BC | D39: Bouchons Verts | E39: BV220518B | F39: 1 | H39: 24.56 | I39: 40933.33333 | K39: INJ PLASTIQUE
A40: ENTREE | B40: 2018-05-22 | C40: BC | D40: Bouchons Verts | E40: BV220518A | F40: 0.5 | H40: 12 | I40: 20000 | K40: INJ PLASTIQUE
A41: ENTREE | B41: 2018-05-22 | C41: TPP | D41: Tubes PP | E41: TPP220518B | F41: 6 | G41: 19 | H41: 138.7 | I41: 69350 | K41: INJ PLASTIQUE
A42: ENTREE | B42: 2018-05-22 | C42: TPP | D42: Tubes PP | E42: TPP220518A | F42: 3 | G42: 9 | H42: 65.7 | I42: 32850 | K42: INJ PLASTIQUE
A43: ENTREE | B43: 2018-05-22 | C43: PR | D43: Portoirs | E43: P027 | F43: 3 | G43: 12.975 | I43: 2595 | K43: INJ PLASTIQUE
A44: ENTREE | B44: 2018-05-21 | C44: BC | D44: Bouchons Verts | E44: BV210518B | F44: 1 | H44: 24.87 | I44: 41450 | K44: INJ PLASTIQUE
A45: ENTREE | B45: 2018-05-21 | C45: BC | D45: Bouchons Verts | E45: BV210518A | F45: 0.5 | H45: 12.096 | I45: 20160 | K45: INJ PLASTIQUE
A46: ENTREE | B46: 2018-05-21 | C46: TPP | D46: Tubes PP | E46: TPP210518B | F46: 6 | G46: 17 | H46: 124.1 | I46: 62050 | K46: INJ PLASTIQUE
A47: ENTREE | B47: 2018-05-21 | C47: TPP | D47: Tubes PP | E47: TPP210518A | F47: 3 | G47: 10 | H47: 73 | I47: 36500 | K47: INJ PLASTIQUE
A48: ENTREE | B48: 2018-05-21 | C48: PR | D48: Portoirs | E48: P026 | F48: 2 | H48: 9.68 | I48: =IF(A48="SORTIE","",IF(A48="RETOUR","",IF(C48="TPP",H48/$G$4,IF(C48="BC",H48/$G$3,IF(C48="PR",G48*$G$2))))) -> 0 | K48: INJ PLASTIQUE
A49: ENTREE | B49: 2018-05-20 | C49: TPP | D49: Tubes PP | E49: TPP200518B | F49: 6 | G49: 18 | H49: 131.4 | I49: 65700 | K49: INJ PLASTIQUE
A50: ENTREE | B50: 2018-05-20 | C50: TPP | D50: Tubes PP | E50: TPP200518A | F50: 3 | G50: 9 | H50: 65.7 | I50: 32850 | K50: INJ PLASTIQUE
A51: ENTREE | B51: 2018-05-19 | C51: BC | D51: Bouchons Verts | E51: BV190518B | F51: 1 | H51: 24 | I51: 40000 | K51: INJ PLASTIQUE
A52: ENTREE | B52: 2018-05-19 | C52: BC | D52: Bouchons Verts | E52: BV190518A | F52: 0.5 | H52: 12.84 | I52: 21400 | K52: INJ PLASTIQUE
A53: ENTREE | B53: 2018-05-19 | C53: TPP | D53: Tubes PP | E53: TPP190518B | F53: 6 | G53: 19 | H53: 138.7 | I53: 69350 | K53: INJ PLASTIQUE
A54: ENTREE | B54: 2018-05-19 | C54: TPP | D54: Tubes PP | E54: TPP190518A | F54: 3 | G54: 9 | H54: 65.7 | I54: 32850 | K54: INJ PLASTIQUE
A55: ENTREE | B55: 2018-05-19 | C55: PR | D55: Portoirs | E55: P025 | F55: 2 | G55: 10.85 | I55: 2170 | K55: INJ PLASTIQUE
A56: ENTREE | B56: 2018-05-18 | C56: BC | D56: Bouchons Verts | E56: BV180518B | F56: 1 | H56: 19.985 | I56: 33308.33333 | K56: INJ PLASTIQUE
A57: ENTREE | B57: 2018-05-18 | C57: BC | D57: Bouchons Verts | E57: BV180518A | F57: 1 | H57: 21.692 | I57: 36153.33333 | K57: INJ PLASTIQUE
A58: ENTREE | B58: 2018-05-18 | C58: TPP | D58: Tubes PP | E58: TPP180518B | F58: 5 | G58: 22 | H58: 160.6 | I58: 80300 | K58: INJ PLASTIQUE
A59: ENTREE | B59: 2018-05-18 | C59: TPP | D59: Tubes PP | E59: TPP180518A | F59: 3 | G59: 22 | H59: 160.6 | I59: 80300 | K59: INJ PLASTIQUE
A60: ENTREE | B60: 2018-05-17 | C60: BC | D60: Bouchons Verts | E60: BV170518B | F60: 1 | H60: 14.04 | I60: 23400 | K60: INJ PLASTIQUE
A61: ENTREE | B61: 2018-05-17 | C61: BC | D61: Bouchons Verts | E61: BV170518A | F61: 0.5 | H61: 12.334 | I61: 20556.66667 | K61: INJ PLASTIQUE
A62: ENTREE | B62: 2018-05-17 | C62: TPP | D62: Tubes PP | E62: TPP170518B | F62: 3 | G62: 12 | H62: 87.6 | I62: 43800 | K62: INJ PLASTIQUE
A63: ENTREE | B63: 2018-05-17 | C63: TPP | D63: Tubes PP | E63: TPP170518A | F63: 3 | G63: 12 | H63: 87.6 | I63: 43800 | K63: INJ PLASTIQUE
A64: ENTREE | B64: 2018-05-17 | C64: PR | D64: Portoirs | E64: P024 | F64: 2 | G64: 14.41 | I64: 2882 | K64: INJ PLASTIQUE
A65: ENTREE | B65: 2018-05-16 | C65: BC | D65: Bouchons Verts | E65: BC160518B | F65: 1.5 | H65: 24.452 | I65: 40753.33333 | K65: INJ PLASTIQUE
A66: ENTREE | B66: 2018-05-16 | C66: BC | D66: Bouchons Verts | E66: BC160518A | F66: 0.5 | H66: 13.701 | I66: 22835 | K66: INJ PLASTIQUE
A67: ENTREE | B67: 2018-05-16 | C67: TPP | D67: Tubes PP | E67: TPP160518B | F67: 3 | G67: 20 | H67: 146 | I67: 73000 | K67: INJ PLASTIQUE
A68: ENTREE | B68: 2018-05-16 | C68: TPP | D68: Tubes PP | E68: TPP160518A | F68: 3 | G68: 11 | H68: 80.3 | I68: 40150 | K68: INJ PLASTIQUE
A69: ENTREE | B69: 2018-05-15 | C69: BC | D69: Bouchons Verts | E69: BV150518B | F69: 1.05 | H69: 20.5 | I69: 34166.66667 | K69: INJ PLASTIQUE
A70: ENTREE | B70: 2018-05-15 | C70: BC | D70: Bouchons Verts | E70: BV150518A | F70: 0.5 | H70: 13.546 | I70: 22576.66667 | K70: INJ PLASTIQUE
A71: ENTREE | B71: 2018-05-15 | C71: TPP | D71: Tubes PP | E71: TPP150518B | F71: 6 | G71: 19 | H71: 138.7 | I71: 69350 | K71: INJ PLASTIQUE
A72: ENTREE | B72: 2018-05-15 | C72: TPP | D72: Tubes PP | E72: TPP150518A | F72: 4 | G72: 11 | H72: 80.3 | I72: 40150 | K72: INJ PLASTIQUE
A73: ENTREE | B73: 2018-05-14 | C73: BC | D73: Bouchons Verts | E73: BV140518B | F73: 1 | H73: 33.082 | I73: 55136.66667 | K73: INJ PLASTIQUE
A74: ENTREE | B74: 2018-05-14 | C74: BC | D74: Bouchons Verts | E74: BV140518A | F74: 0.5 | H74: 11.312 | I74: 18853.33333 | K74: INJ PLASTIQUE
A75: ENTREE | B75: 2018-05-14 | C75: TPP | D75: Tubes PP | E75: TPP140518B | F75: 6 | G75: 18 | H75: 131.4 | I75: 65700 | K75: INJ PLASTIQUE
A76: ENTREE | B76: 2018-05-14 | C76: TPP | D76: Tubes PP | E76: TPP140518A | F76: 4 | G76: 12 | H76: 87.6 | I76: 43800 | K76: INJ PLASTIQUE
A77: ENTREE | B77: 2018-05-13 | C77: BC | D77: Bouchons Verts | E77: BV130518B | F77: 0.5 | H77: 14 | I77: 23333.33333 | K77: INJ PLASTIQUE
A78: ENTREE | B78: 2018-05-13 | C78: TPP | D78: Tubes PP | E78: TPP130518B | F78: 6 | G78: 17 | H78: 124.1 | I78: 62050 | K78: INJ PLASTIQUE
A79: ENTREE | B79: 2018-05-12 | C79: BC | D79: Bouchons Verts | E79: BV120518B | F79: 0.5 | H79: 22.62 | I79: 37700 | K79: INJ PLASTIQUE
A80: ENTREE | B80: 2018-05-12 | C80: BC | D80: Bouchons Verts | E80: BV120518A | F80: 0.5 | H80: 13.316 | I80: =IF(A80="SORTIE","",IF(A80="RETOUR","",IF(C80="TPP",H80/$G$4,IF(C80="BC",H80/$G$3,IF(C80="PR",G80*$G$2))))) -> 22193.33333 | K80: INJ PLASTIQUE | T80: =IF(A80="ENTREE","",IF(A80="SORTIE","",IF(C80="TPP",R80/$G$4,IF(C80="BC",R80/$G$3,IF(C80="PR",S80*$G$2))))) -> 
A81: ENTREE | B81: 2018-05-12 | C81: TPP | D81: Tubes PP | E81: TPP120518B | F81: 3 | G81: 18 | H81: 131.4 | I81: 65700 | K81: INJ PLASTIQUE
A82: ENTREE | B82: 2018-05-12 | C82: TPP | D82: Tubes PP | E82: TPP120518A | F82: 1 | G82: 2 | H82: 14.6 | I82: 7300 | K82: INJ PLASTIQUE
A83: ENTREE | B83: 2018-05-12 | C83: PR | D83: Portoirs | E83: P023 | F83: 1 | G83: 20.34 | I83: 4068 | K83: INJ PLASTIQUE
A84: ENTREE | B84: 2018-05-11 | C84: BC | D84: Bouchons Verts | E84: BV110518A | F84: 0.5 | H84: 13.15 | I84: 21916.66667 | K84: INJ PLASTIQUE
A85: ENTREE | B85: 2018-05-11 | C85: TPP | D85: Tubes PP | E85: TPP110518A | F85: 4 | G85: 11 | H85: 80.3 | I85: 40150 | K85: INJ PLASTIQUE
A86: ENTREE | B86: 2018-05-10 | C86: BC | D86: Bouchons Verts | E86: BV100518A | F86: 0.5 | H86: 12.92 | I86: 21533.33333 | K86: INJ PLASTIQUE
A87: ENTREE | B87: 2018-05-10 | C87: TPP | D87: Tubes PP | E87: TPP100518A | F87: 3 | G87: 7 | H87: 51.1 | I87: 25550 | K87: INJ PLASTIQUE
A88: ENTREE | B88: 2018-05-07 | C88: PR | D88: Portoirs | E88: P022 | F88: 0.5 | G88: 16 | I88: 3200 | K88: INJ PLASTIQUE
A89: ENTREE | B89: 2018-05-06 | C89: BC | D89: Bouchons Verts | E89: BV060518B | F89: 0.5 | H89: 12.745 | I89: 21241.66667 | K89: INJ PLASTIQUE
A90: ENTREE | B90: 2018-05-06 | C90: BC | D90: Bouchons Verts | E90: BV060518A | F90: 0.5 | H90: 13.06 | I90: 21766.66667 | J90: 24 | K90: INJ PLASTIQUE
A91: ENTREE | B91: 2018-05-06 | C91: TPP | D91: Tubes PP | E91: TPP060518B | F91: 4 | G91: 10 | H91: 73 | I91: 36500 | J91: 0 | K91: INJ PLASTIQUE
A92: ENTREE | B92: 2018-05-06 | C92: TPP | D92: Tubes PP | E92: TPP060518A | F92: 3 | G92: 9 | H92: 65.7 | I92: 32850 | J92: 13 | K92: INJ PLASTIQUE
A93: ENTREE | B93: 2018-05-06 | C93: PR | D93: Portoirs | E93: P021 | F93: 3 | G93: 14.305 | I93: 2861 | J93: 16 | K93: INJ PLASTIQUE
A94: ENTREE | B94: 2018-05-05 | C94: BC | D94: Bouchons Verts | E94: BC050518B | F94: 0.5 | H94: 13.05 | I94: 21750 | J94: 16 | K94: INJ PLASTIQUE
A95: ENTREE | B95: 2018-05-05 | C95: BC | D95: Bouchons Verts | E95: BC050518A | F95: 0.5 | H95: 13 | I95: 21666.66667 | J95: 24 | K95: INJ PLASTIQUE
A96: ENTREE | B96: 2018-05-05 | C96: TPP | D96: Tubes PP | E96: TPP050518B | F96: 4 | G96: 10 | H96: 73 | I96: 36500 | J96: 0 | K96: INJ PLASTIQUE
A97: ENTREE | B97: 2018-05-05 | C97: TPP | D97: Tubes PP | E97: TPP050518A | F97: 4 | I97: 0 | K97: INJ PLASTIQUE
A98: ENTREE | B98: 2018-05-04 | C98: BC | D98: Bouchons Verts | E98: BV040518B | F98: 0.5 | H98: 13.69 | I98: 22816.66667 | J98: 0 | K98: INJ PLASTIQUE
A99: ENTREE | B99: 2018-05-04 | C99: BC | D99: Bouchons Verts | E99: BV040518A | F99: 0.5 | H99: 12.24 | I99: 20400 | J99: 24 | K99: INJ PLASTIQUE
A100: ENTREE | B100: 2018-05-04 | C100: TPP | D100: Tubes PP | E100: TPP040518B | F100: 0.5 | G100: 9 | H100: 65.7 | I100: 32850 | J100: 0 | K100: INJ PLASTIQUE
A101: ENTREE | B101: 2018-05-03 | C101: BC | D101: Bouchons Verts | E101: BV030518B | F101: 0.5 | H101: 13.35 | I101: 22250 | J101: 0 | K101: INJ PLASTIQUE
A102: ENTREE | B102: 2018-05-03 | C102: BC | D102: Bouchons Verts | E102: BV030518A | F102: 0.5 | H102: 13.1 | I102: 21833.33333 | J102: 273 | K102: INJ PLASTIQUE
A103: ENTREE | B103: 2018-05-03 | C103: TPP | D103: Tubes PP | E103: TPP030518B | F103: 4 | G103: 10 | H103: 73 | I103: 36500 | J103: 0 | K103: INJ PLASTIQUE
A104: ENTREE | B104: 2018-05-03 | C104: TPP | D104: Tubes PP | E104: TPP030518A | F104: 4 | G104: 10 | H104: 73 | I104: 36500 | J104: 36 | K104: INJ PLASTIQUE
A105: ENTREE | B105: 2018-05-03 | C105: PR | D105: Portoirs | E105: P020 | F105: 3 | G105: 14.975 | I105: 2995 | J105: 140 | K105: INJ PLASTIQUE
A106: ENTREE | B106: 2018-05-02 | C106: BC | D106: Bouchons Verts | E106: BV020518B | F106: 0.5 | H106: 13 | I106: 21666.66667 | J106: 0 | K106: INJ PLASTIQUE
A107: ENTREE | B107: 2018-05-02 | C107: BC | D107: Bouchons Verts | E107: BV020518A | F107: 0.5 | H107: 13.24 | I107: 22066.66667 | J107: 32 | K107: INJ PLASTIQUE
A108: ENTREE | B108: 2018-03-17 | C108: BC | D108: Bouchons Mauves | E108: BM170318A | F108: 0.5 | H108: 15.677 | I108: =IF(A108="SORTIE","",IF(A108="RETOUR","",IF(C108="TPP",H108/$G$4,IF(C108="BC",H108/$G$3,IF(C108="PR",G108*$G$2))))) -> 26128.33333 | K108: INJ PLASTIQUE | O108: =IF(A108="ENTREE","",IF(A108="RETOUR","",IF(C108="TPP",N108/$G$4,IF(C108="BC",N108/$G$3,IF(C108="PR",M108*$G$2))))) ->  | T108: =IF(A108="ENTREE","",IF(A108="SORTIE","",IF(C108="TPP",R108/$G$4,IF(C108="BC",R108/$G$3,IF(C108="PR",S108*$G$2))))) -> 
A109: ENTREE | B109: 2018-03-16 | C109: BC | D109: Bouchons Mauves | E109: BM160318A | F109: 1 | H109: 26.746 | I109: 44576.66667 | K109: INJ PLASTIQUE
A110: ENTREE | B110: 2018-03-15 | C110: BC | D110: Bouchons Mauves | E110: BM150318B | F110: 1.5 | H110: 28.404 | I110: 47340 | K110: INJ PLASTIQUE
A111: ENTREE | B111: 2018-03-15 | C111: BC | D111: Bouchons Mauves | E111: BM150318A | F111: 0.5 | H111: 15.653 | I111: =IF(A111="SORTIE","",IF(A111="RETOUR","",IF(C111="TPP",H111/$G$4,IF(C111="BC",H111/$G$3,IF(C111="PR",G111*$G$2))))) -> 26088.33333 | K111: INJ PLASTIQUE
A112: ENTREE | B112: 2018-03-14 | C112: BC | D112: Bouchons Mauves | E112: BM140318B | F112: 1.5 | H112: 26.088 | I112: =IF(A112="SORTIE","",IF(A112="RETOUR","",IF(C112="TPP",H112/$G$4,IF(C112="BC",H112/$G$3,IF(C112="PR",G112*$G$2))))) -> 43480 | K112: INJ PLASTIQUE
A113: ENTREE | B113: 2018-03-14 | C113: BC | D113: Bouchons Mauves | E113: BM140318A | F113: 0.5 | H113: 13.114 | I113: 21856.66667 | K113: INJ PLASTIQUE
A114: ENTREE | B114: 2018-03-13 | C114: BC | D114: Bouchons Mauves | E114: BM130318B | F114: 1 | H114: 28.061 | I114: 46768.33333 | K114: INJ PLASTIQUE
A115: ENTREE | B115: 2018-03-13 | C115: BC | D115: Bouchons Mauves | E115: BM130318A | F115: 0.5 | H115: 15.274 | I115: 25456.66667 | K115: INJ PLASTIQUE
A116: ENTREE | B116: 2018-03-12 | C116: BC | D116: Bouchons Mauves | E116: BM120318B | F116: 0.5 | H116: 27.125 | I116: 45208.33333 | K116: INJ PLASTIQUE
A117: ENTREE | B117: 2018-03-12 | C117: BC | D117: Bouchons Mauves | E117: BM120318B | F117: 0.5 | H117: 12.528 | I117: 20880 | K117: INJ PLASTIQUE
A118: ENTREE | B118: 2018-03-11 | C118: BC | D118: Bouchons Mauves | E118: BM110318B | F118: 1 | H118: 28.027 | I118: 46711.66667 | K118: INJ PLASTIQUE
A119: ENTREE | B119: 2018-03-11 | C119: BC | D119: Bouchons Mauves | E119: BM110318A | F119: 0.5 | H119: 15.682 | I119: 26136.66667 | K119: INJ PLASTIQUE
A120: ENTREE | B120: 2018-03-10 | C120: BC | D120: Bouchons Mauves | E120: BM100318B | F120: 1 | H120: 27.864 | I120: 46440 | K120: INJ PLASTIQUE
A121: ENTREE | B121: 2018-03-10 | C121: BC | D121: Bouchons Mauves | E121: BM100318A | F121: 0.5 | H121: 15.312 | I121: 25520 | K121: INJ PLASTIQUE
A122: ENTREE | B122: 2018-03-09 | C122: BC | D122: Bouchons Mauves | E122: BM090318A | F122: 1 | H122: 27.513 | I122: 45855 | K122: INJ PLASTIQUE
A123: ENTREE | B123: 2018-03-08 | C123: BC | D123: Bouchons Mauves | E123: BM080318B | F123: 1 | H123: 28.085 | I123: 46808.33333 | K123: INJ PLASTIQUE
A124: ENTREE | B124: 2018-03-08 | C124: BC | D124: Bouchons Mauves | E124: BM080318A | F124: 0.5 | H124: 15.475 | I124: 25791.66667 | K124: INJ PLASTIQUE
A125: ENTREE | B125: 2018-03-07 | C125: BC | D125: Bouchons Mauves | E125: BM070318B | F125: 1 | H125: 28.565 | I125: 47608.33333 | K125: INJ PLASTIQUE
A126: ENTREE | B126: 2018-03-07 | C126: BC | D126: Bouchons Mauves | E126: BM070318A | F126: 0.5 | H126: 15.12 | I126: 25200 | K126: INJ PLASTIQUE
A127: ENTREE | B127: 2018-03-06 | C127: BC | D127: Bouchons Mauves | E127: BM060318B | F127: 1 | H127: 28.2 | I127: 47000 | K127: INJ PLASTIQUE
A128: ENTREE | B128: 2018-03-06 | C128: BC | D128: Bouchons Mauves | E128: BM060318A | F128: 0.5 | H128: 15.442 | I128: 25736.66667 | K128: INJ PLASTIQUE
A129: ENTREE | B129: 2018-03-05 | C129: BC | D129: Bouchons Mauves | E129: BM050318B | F129: 1 | H129: 28.56 | I129: 47600 | K129: INJ PLASTIQUE
A130: ENTREE | B130: 2018-03-05 | C130: BC | D130: Bouchons Mauves | E130: BM050318A | F130: 0.5 | H130: 15.95 | I130: 26583.33333 | K130: INJ PLASTIQUE
A131: ENTREE | B131: 2018-03-04 | C131: BC | D131: Bouchons Mauves | E131: BM040318B | F131: 1 | H131: 28.43 | I131: =IF(A131="SORTIE","",IF(A131="RETOUR","",IF(C131="TPP",H131/$G$4,IF(C131="BC",H131/$G$3,IF(C131="PR",G131*$G$2))))) -> 47383.33333 | K131: INJ PLASTIQUE
A132: ENTREE | B132: 2018-03-04 | C132: BC | D132: Bouchons Mauves | E132: BM040318A | F132: 0.5 | H132: 15.893 | I132: =IF(A132="SORTIE","",IF(A132="RETOUR","",IF(C132="TPP",H132/$G$4,IF(C132="BC",H132/$G$3,IF(C132="PR",G132*$G$2))))) -> 26488.33333 | K132: INJ PLASTIQUE
A133: ENTREE | B133: 2018-03-03 | C133: BC | D133: Bouchons Mauves | E133: BM030318B | F133: 1 | H133: 28.978 | I133: 48296.66667 | K133: INJ PLASTIQUE
A134: ENTREE | B134: 2018-03-03 | C134: BC | D134: Bouchons Mauves | E134: BM030318A | F134: 0.5 | H134: 15.086 | I134: 25143.33333 | K134: INJ PLASTIQUE
A135: ENTREE | B135: 2018-03-02 | C135: BC | D135: Bouchons Mauves | E135: BM020318A | F135: 1 | H135: 27.211 | I135: 45351.66667 | K135: INJ PLASTIQUE
A136: ENTREE | B136: 2018-03-01 | C136: BC | D136: Bouchons Mauves | E136: BM010318A | F136: 1 | H136: 30.758 | I136: 51263.33333 | K136: INJ PLASTIQUE
A137: ENTREE | B137: 2018-02-24 | C137: BC | D137: Bouchons Mauves | E137: BM240218B | F137: 1.5 | H137: 29.678 | I137: 49463.33333 | K137: INJ PLASTIQUE
A138: ENTREE | B138: 2018-02-06 | C138: BC | D138: Bouchons Bleus | E138: BB060218A | F138: 1.5 | H138: 21.982 | I138: =IF(A138="SORTIE","",IF(A138="RETOUR","",IF(C138="TPP",H138/$G$4,IF(C138="BC",H138/$G$3,IF(C138="PR",G138*$G$2))))) -> 36636.66667 | K138: INJ PLASTIQUE | O138: =IF(A138="ENTREE","",IF(A138="RETOUR","",IF(C138="TPP",N138/$G$4,IF(C138="BC",N138/$G$3,IF(C138="PR",M138*$G$2))))) ->  | T138: =IF(A138="ENTREE","",IF(A138="SORTIE","",IF(C138="TPP",R138/$G$4,IF(C138="BC",R138/$G$3,IF(C138="PR",S138*$G$2))))) -> 
A139: ENTREE | B139: 2018-02-05 | C139: BC | D139: Bouchons Bleus | E139: BB050218B | F139: 1 | H139: 22.8 | I139: =IF(A139="SORTIE","",IF(A139="RETOUR","",IF(C139="TPP",H139/$G$4,IF(C139="BC",H139/$G$3,IF(C139="PR",G139*$G$2))))) -> 38000 | K139: INJ PLASTIQUE
A140: ENTREE | B140: 2018-02-05 | C140: BC | D140: Bouchons Bleus | E140: BB050218A | F140: 0.5 | H140: 15.965 | I140: 26608.33333 | K140: INJ PLASTIQUE
A141: ENTREE | B141: 2018-02-04 | C141: BC | D141: Bouchons Bleus | E141: BB040218B | F141: 1 | H141: 28.454 | I141: 47423.33333 | K141: INJ PLASTIQUE
A142: ENTREE | B142: 2018-02-04 | C142: BC | D142: Bouchons Bleus | E142: BB040218A | F142: 0.5 | H142: 2.995 | I142: 4991.666667 | K142: INJ PLASTIQUE
A143: ENTREE | B143: 2018-02-01 | C143: BC | D143: Bouchons Bleus | E143: BB010218B | F143: 1 | H143: 27.914 | I143: 46523.33333 | K143: INJ PLASTIQUE
A144: ENTREE | B144: 2018-02-01 | C144: BC | D144: Bouchons Bleus | E144: BB010218A | F144: 0.5 | H144: 15.538 | I144: 25896.66667 | K144: INJ PLASTIQUE
A145: ENTREE | B145: 2018-01-31 | C145: BC | D145: Bouchons Bleus | E145: BB310118B | F145: 1.5 | H145: 26.261 | I145: 43768.33333 | K145: INJ PLASTIQUE
A146: ENTREE | B146: 2018-01-31 | C146: BC | D146: Bouchons Bleus | E146: BB310118A | F146: 0.5 | H146: 15.566 | I146: 25943.33333 | K146: INJ PLASTIQUE
A147: ENTREE | B147: 2018-01-30 | C147: BC | D147: Bouchons Bleus | E147: BB300118B | F147: 1.5 | H147: 28.79 | I147: =IF(A147="SORTIE","",IF(A147="RETOUR","",IF(C147="TPP",H147/$G$4,IF(C147="BC",H147/$G$3,IF(C147="PR",G147*$G$2))))) -> 47983.33333 | K147: INJ PLASTIQUE
A148: ENTREE | B148: 2018-01-30 | C148: BC | D148: Bouchons Bleus | E148: BB300118A | F148: 0.5 | H148: 15.202 | I148: =IF(A148="SORTIE","",IF(A148="RETOUR","",IF(C148="TPP",H148/$G$4,IF(C148="BC",H148/$G$3,IF(C148="PR",G148*$G$2))))) -> 25336.66667 | K148: INJ PLASTIQUE
A149: ENTREE | B149: 2018-01-29 | C149: BC | D149: Bouchons Bleus | E149: BB290118B | F149: 1.5 | H149: 28.906 | I149: =IF(A149="SORTIE","",IF(A149="RETOUR","",IF(C149="TPP",H149/$G$4,IF(C149="BC",H149/$G$3,IF(C149="PR",G149*$G$2))))) -> 48176.66667 | K149: INJ PLASTIQUE
A150: ENTREE | B150: 2018-01-29 | C150: BC | D150: Bouchons Bleus | E150: BB290118A | F150: 0.5 | H150: 15.398 | I150: =IF(A150="SORTIE","",IF(A150="RETOUR","",IF(C150="TPP",H150/$G$4,IF(C150="BC",H150/$G$3,IF(C150="PR",G150*$G$2))))) -> 25663.33333 | K150: INJ PLASTIQUE
A151: ENTREE | B151: 2018-01-28 | C151: BC | D151: Bouchons Bleus | E151: BB280118B | F151: 1.5 | H151: 28.258 | I151: 47096.66667 | J151: 2000 | K151: INJ PLASTIQUE
A152: ENTREE | B152: 2018-01-28 | C152: BC | D152: Bouchons Bleus | E152: BB280118A | F152: 0.5 | H152: 15.946 | I152: 26576.66667 | K152: INJ PLASTIQUE
A153: ENTREE | B153: 2018-01-27 | C153: BC | D153: Bouchons Bleus | E153: BB270118B | F153: 1.5 | H153: 28.488 | I153: 47480 | K153: INJ PLASTIQUE
A154: ENTREE | B154: 2018-01-27 | C154: BC | D154: Bouchons Bleus | E154: BB270118A | F154: 0.5 | H154: 16.2 | I154: 27000 | K154: INJ PLASTIQUE
A155: ENTREE | B155: 2018-01-26 | C155: BC | D155: Bouchons Bleus | E155: BB260118B | F155: 1.5 | H155: 28.478 | I155: 47463.33333 | K155: INJ PLASTIQUE
A156: ENTREE | B156: 2018-01-26 | C156: BC | D156: Bouchons Bleus | E156: BB260118B | F156: 0.5 | H156: 14.448 | I156: 24080 | K156: INJ PLASTIQUE
A157: ENTREE | B157: 2018-01-25 | C157: BC | D157: Bouchons Bleus | E157: BB250118B | F157: 0.5 | H157: 29.429 | I157: 49048.33333 | K157: INJ PLASTIQUE
A158: ENTREE | B158: 2018-01-25 | C158: BC | D158: Bouchons Bleus | E158: BB250118A | F158: 0.5 | H158: 15.418 | I158: 25696.66667 | K158: INJ PLASTIQUE
A159: ENTREE | B159: 2018-01-24 | C159: BC | D159: Bouchons Bleus | E159: BB240118B | F159: 1 | H159: 26.52 | I159: 44200 | K159: INJ PLASTIQUE
A160: ENTREE | B160: 2018-01-24 | C160: BC | D160: Bouchons Bleus | E160: BB240118A | F160: 0.5 | H160: 9.763 | I160: =IF(A160="SORTIE","",IF(A160="RETOUR","",IF(C160="TPP",H160/$G$4,IF(C160="BC",H160/$G$3,IF(C160="PR",G160*$G$2))))) -> 16271.66667 | K160: INJ PLASTIQUE
A161: ENTREE | B161: 2018-01-23 | C161: BC | D161: Bouchons Mauves | E161: BM230118B | F161: 1.5 | H161: 28.742 | I161: =IF(A161="SORTIE","",IF(A161="RETOUR","",IF(C161="TPP",H161/$G$4,IF(C161="BC",H161/$G$3,IF(C161="PR",G161*$G$2))))) -> 47903.33333 | K161: INJ PLASTIQUE
A162: ENTREE | B162: 2018-01-23 | C162: BC | D162: Bouchons Mauves | E162: BM230118A | F162: 0.5 | H162: 15.566 | I162: 25943.33333 | K162: INJ PLASTIQUE
A163: ENTREE | B163: 2018-01-22 | C163: BC | D163: Bouchons Mauves | E163: BM220118B | F163: 1.5 | H163: 28.565 | I163: 47608.33333 | K163: INJ PLASTIQUE
A164: ENTREE | B164: 2018-01-22 | C164: BC | D164: Bouchons Mauves | E164: BM220118A | F164: 0.5 | H164: 15.71 | I164: 26183.33333 | K164: INJ PLASTIQUE
A165: ENTREE | B165: 2018-01-21 | C165: BC | D165: Bouchons Mauves | E165: BM210118B | F165: 1.5 | H165: 28.406 | I165: =IF(A165="SORTIE","",IF(A165="RETOUR","",IF(C165="TPP",H165/$G$4,IF(C165="BC",H165/$G$3,IF(C165="PR",G165*$G$2))))) -> 47343.33333 | K165: INJ PLASTIQUE
A166: ENTREE | B166: 2018-01-21 | C166: BC | D166: Bouchons Mauves | E166: BM210118A | F166: 0.5 | H166: 16.042 | I166: =IF(A166="SORTIE","",IF(A166="RETOUR","",IF(C166="TPP",H166/$G$4,IF(C166="BC",H166/$G$3,IF(C166="PR",G166*$G$2))))) -> 26736.66667 | K166: INJ PLASTIQUE
A167: ENTREE | B167: 2018-01-20 | C167: BC | D167: Bouchons Mauves | E167: BM200118B | F167: 1 | H167: 26.597 | I167: 44328.33333 | K167: INJ PLASTIQUE
A168: ENTREE | B168: 2018-01-20 | C168: BC | D168: Bouchons Mauves | E168: BM200118A | F168: 0.5 | H168: 17.112 | I168: 28520 | K168: INJ PLASTIQUE
A169: ENTREE | B169: 2018-01-19 | C169: BC | D169: Bouchons Mauves | E169: BM190118B | F169: 1 | H169: 28.718 | I169: 47863.33333 | K169: INJ PLASTIQUE
A170: ENTREE | B170: 2018-01-19 | C170: BC | D170: Bouchons Mauves | E170: BM190118A | F170: 0.5 | H170: 15.125 | I170: 25208.33333 | K170: INJ PLASTIQUE
A171: ENTREE | B171: 2018-01-18 | C171: BC | D171: Bouchons Mauves | E171: BM180118B | F171: 1 | H171: 28.838 | I171: 48063.33333 | K171: INJ PLASTIQUE
A172: ENTREE | B172: 2018-01-18 | C172: BC | D172: Bouchons Mauves | E172: BM180118A | F172: 0.5 | H172: 15.293 | I172: 25488.33333 | K172: INJ PLASTIQUE
A173: ENTREE | B173: 2018-01-17 | C173: BC | D173: Bouchons Mauves | E173: BM170118B | F173: 1 | H173: 28.714 | I173: 47856.66667 | K173: INJ PLASTIQUE
A174: SORTIE | C174: TPP | D174: Tubes PP | E174: TPP050318A | K174: PROD ATC | L174: 2018-03-15 | N174: 78 | O174: =IF(A174="ENTREE","",IF(A174="RETOUR","",IF(C174="TPP",N174/$G$4,IF(C174="BC",N174/$G$3,IF(C174="PR",M174*$G$2))))) -> 39000 | T174: =IF(A174="ENTREE","",IF(A174="SORTIE","",IF(C174="TPP",R174/$G$4,IF(C174="BC",R174/$G$3,IF(C174="PR",S174*$G$2))))) -> 
A175: SORTIE | C175: TPP | D175: Tubes PP | E175: TPP030318B | K175: PROD ATC | L175: 2018-03-15 | N175: 98 | O175: 49000
A176: SORTIE | C176: TPP | D176: Tubes PP | E176: TPP030318A | K176: PROD ATC | L176: 2018-03-15 | N176: 76 | O176: 38000
A177: SORTIE | C177: TPP | D177: Tubes PP | E177: TPP080218B | K177: PROD ATC | L177: 2018-02-20 | N177: 105 | O177: 52500
A178: SORTIE | C178: TPP | D178: Tubes PP | E178: TPP080218A | K178: PROD ATC | L178: 2018-02-20 | N178: 82 | O178: 41000
A179: SORTIE | C179: TPP | D179: Tubes PP | E179: TPP070218B | K179: PROD ATC | L179: 2018-02-10 | N179: 54 | O179: 27000
A180: SORTIE | C180: TPP | D180: Tubes PP | E180: TPP070218A | I180: =IF(A180="SORTIE","",IF(A180="RETOUR","",IF(C180="TPP",H180/$G$4,IF(C180="BC",H180/$G$3,IF(C180="PR",G180*$G$2))))) ->  | K180: PROD ATC | L180: 10//02/18 | N180: 80 | O180: 40000
A181: SORTIE | C181: TPP | D181: Tubes PP | E181: TPP060218B | K181: PROD ATC | L181: 2018-02-10 | N181: 95 | O181: 47500
A182: SORTIE | C182: TPP | D182: Tubes PP | E182: TPP060218A | K182: PROD ATC | L182: 2018-02-10 | N182: 83 | O182: 41500
A183: SORTIE | C183: TPP | D183: Tubes PP | E183: TPP260118B | K183: PROD ATC | L183: 2018-02-05 | N183: 100 | O183: 50000
A184: SORTIE | C184: TPP | D184: Tubes PP | E184: TPP260118A | K184: PROD ATC | L184: 2018-02-05 | N184: 81 | O184: 40500
A185: SORTIE | C185: TPP | D185: Tubes PP | E185: TPP230118B | K185: PROD ATC | L185: 2018-02-05 | N185: 85 | O185: 42500
A186: SORTIE | C186: TPP | D186: Tubes PP | E186: TPP230118A | K186: PROD ATC | L186: 2018-02-05 | N186: 82 | O186: 41000
A187: SORTIE | C187: TPP | D187: Tubes PP | E187: TPP210118B | K187: PROD ATC | L187: 2018-02-01 | N187: 149 | O187: 74500
A188: SORTIE | C188: TPP | D188: Tubes PP | E188: TPP210118A | K188: PROD ATC | L188: 2018-02-01 | N188: 70 | O188: 35000
A189: SORTIE | C189: TPP | D189: Tubes PP | E189: TPP200118B | K189: PROD ATC | L189: 2018-02-01 | N189: 141 | O189: 70500
A190: SORTIE | C190: TPP | D190: Tubes PP | E190: TPP200118A | K190: PROD ATC | L190: 2018-02-01 | N190: 54 | O190: 27000
A191: SORTIE | C191: TPP | D191: Tubes PP | E191: TPP190118 | K191: PROD ATC | L191: 2018-02-01 | N191: 107 | O191: 53500
A192: ENTREE | B192: 2018-03-05 | C192: TPP | D192: Tubes PP | E192: TPP050318B | F192: 7 | G192: 19 | H192: 139 | I192: =IF(A192="SORTIE","",IF(A192="RETOUR","",IF(C192="TPP",H192/$G$4,IF(C192="BC",H192/$G$3,IF(C192="PR",G192*$G$2))))) -> 69500 | K192: INJ PLASTIQUE | T192: =IF(A192="ENTREE","",IF(A192="SORTIE","",IF(C192="TPP",R192/$G$4,IF(C192="BC",R192/$G$3,IF(C192="PR",S192*$G$2))))) -> 
A193: ENTREE | B193: 2018-03-05 | C193: TPP | D193: Tubes PP | E193: TPP050318A | F193: 4 | G193: 11 | H193: 78 | I193: 39000 | K193: INJ PLASTIQUE
A194: ENTREE | B194: 2018-03-03 | C194: TPP | D194: Tubes PP | E194: TPP030318B | F194: 7 | G194: 19 | H194: 141 | I194: 70500 | K194: INJ PLASTIQUE
A195: ENTREE | B195: 2018-03-03 | C195: TPP | D195: Tubes PP | E195: TPP030318A | F195: 3 | G195: 10 | H195: 76 | I195: 38000 | K195: INJ PLASTIQUE
A196: ENTREE | B196: 2018-02-08 | C196: TPP | D196: Tubes PP | E196: TPP080218B | F196: 6 | G196: 20 | H196: 145 | I196: =IF(A196="SORTIE","",IF(A196="RETOUR","",IF(C196="TPP",H196/$G$4,IF(C196="BC",H196/$G$3,IF(C196="PR",G196*$G$2))))) -> 72500 | K196: INJ PLASTIQUE
A197: ENTREE | B197: 2018-02-08 | C197: TPP | D197: Tubes PP | E197: TPP080218A | F197: 4 | G197: 11 | H197: 82 | I197: 41000 | K197: INJ PLASTIQUE
A198: ENTREE | B198: 2018-02-07 | C198: TPP | D198: Tubes PP | E198: TPP070218B | F198: 7 | G198: 20 | H198: 144 | I198: 72000 | K198: INJ PLASTIQUE
A199: ENTREE | B199: 2018-02-07 | C199: TPP | D199: Tubes PP | E199: TPP070218A | F199: 4 | G199: 11 | H199: 80 | I199: =IF(A199="SORTIE","",IF(A199="RETOUR","",IF(C199="TPP",H199/$G$4,IF(C199="BC",H199/$G$3,IF(C199="PR",G199*$G$2))))) -> 40000 | K199: INJ PLASTIQUE
A200: ENTREE | B200: 2018-02-06 | C200: TPP | D200: Tubes PP | E200: TPP060218B | F200: 7 | G200: 19 | H200: 142 | I200: 71000 | K200: INJ PLASTIQUE
A201: ENTREE | B201: 2018-02-06 | C201: TPP | D201: Tubes PP | E201: TPP060218A | F201: 4 | G201: 11 | H201: 83 | I201: 41500 | K201: INJ PLASTIQUE
A202: ENTREE | B202: 2018-01-26 | C202: TPP | D202: Tubes PP | E202: TPP260118B | F202: 7 | G202: 20 | H202: 148 | I202: 74000 | K202: INJ PLASTIQUE | T202: =IF(A202="ENTREE","",IF(A202="SORTIE","",IF(C202="TPP",R202/$G$4,IF(C202="BC",R202/$G$3,IF(C202="PR",S202*$G$2))))) -> 
A203: ENTREE | B203: 2018-01-26 | C203: TPP | D203: Tubes PP | E203: TPP260118A | F203: 4 | G203: 11 | H203: 81 | I203: 40500 | K203: INJ PLASTIQUE
A204: ENTREE | B204: 2018-01-23 | C204: TPP | D204: Tubes PP | E204: TPP230118B | F204: 6 | G204: 20 | H204: 146 | I204: 73000 | K204: INJ PLASTIQUE
A205: ENTREE | B205: 2018-01-23 | C205: TPP | D205: Tubes PP | E205: TPP230118A | F205: 4 | G205: 11 | H205: 82 | I205: 41000 | K205: INJ PLASTIQUE
A206: ENTREE | B206: 2018-01-21 | C206: TPP | D206: Tubes PP | E206: TPP210118B | F206: 6 | G206: 20 | H206: 149 | I206: 74500 | K206: INJ PLASTIQUE
A207: ENTREE | B207: 2018-01-21 | C207: TPP | D207: Tubes PP | E207: TPP210118A | F207: 4 | G207: 11 | H207: 83 | I207: 41500 | K207: INJ PLASTIQUE
A208: ENTREE | B208: 2018-01-20 | C208: TPP | D208: Tubes PP | E208: TPP200118B | F208: 6 | G208: 19 | H208: 141 | I208: 70500 | K208: INJ PLASTIQUE
A209: ENTREE | B209: 2018-01-20 | C209: TPP | D209: Tubes PP | E209: TPP200118A | F209: 3 | G209: 7 | H209: 54 | I209: 27000 | K209: INJ PLASTIQUE
... 3 more rows

Sheet STOCK GLOBAL
B3: STOCK-ENTREE | E3: STOCK_SORTI | H3: STOCK_RETOURNE | K3: PERTE_INJ | N3: PERTE_PROD
B4: Étiquettes de lignes | C4: Somme de ENTREE_U | E4: Étiquettes de lignes | F4: Somme de SORTIE_U | H4: Étiquettes de lignes | I4: Somme de RETOUR_U | K4: Étiquettes de lignes | L4: Somme de PERTE_INJ | N4: Étiquettes de lignes | O4: Somme de PERTE_PROD
B5: (vide) | E5: (vide) | H5: (vide) | K5: (vide) | N5: (vide)
B6: Tubes PP | C6: 10037530 | E6: Tubes PP | F6: 1050500 | H6: Tubes PP | K6: Tubes PP | L6: 20793 | N6: Tubes PP
B7: Bouchons Mauves | C7: 4470613.333 | E7: Bouchons Mauves | F7: 0 | H7: Bouchons Mauves | K7: Bouchons Mauves | L7: 6183 | N7: Bouchons Mauves
B8: Bouchons Bleus | C8: 797865 | E8: Bouchons Bleus | F8: 0 | H8: Bouchons Bleus | K8: Bouchons Bleus | L8: 2000 | N8: Bouchons Bleus
B9: Bouchons Verts | C9: 2618685 | E9: Bouchons Verts | F9: 0 | H9: Bouchons Verts | K9: Bouchons Verts | L9: 677 | N9: Bouchons Verts
B10: Portoirs | C10: 74913 | E10: Portoirs | H10: Portoirs | K10: Portoirs | L10: 1366 | N10: Portoirs
B11: Total général | C11: 17999606.33 | E11: Total général | F11: 1050500 | H11: Total général | K11: Total général | L11: 31019 | N11: Total général

Sheet STOCK TOTAL PAR ARTICLE
A1: SUIVI DE STOCK
A2: 1
B3: PRODUITS | C3: ENTREE | D3: SORTIE | E3: PERTE | F3: STOCK RESTANT | G3: STOCK MIN | H3: ALERTE
B4: =INDEX('LISTE PRODUITS'!A2:A6,'STOCK TOTAL PAR ARTICLE'!$A$2) -> BOUCHONS BLEUS | C4: =IFERROR(GETPIVOTDATA("ENTREE_kg",'STOCK GLOBAL'!$B$4,"PRODUIT",B4),"") ->  | D4: =IFERROR(GETPIVOTDATA("SORTIE_kg",'STOCK GLOBAL'!$E$4,"PRODUIT",B4),"") -> 
B5: =INDEX('LISTE PRODUITS'!A3:A7,'STOCK TOTAL PAR ARTICLE'!$A$2) -> BOUCHONS VERTS | C5: =IFERROR(GETPIVOTDATA("ENTREE_kg",'STOCK GLOBAL'!$B$4,"PRODUIT",B5),"") ->  | D5: =IFERROR(GETPIVOTDATA("SORTIE_kg",'STOCK GLOBAL'!$E$4,"PRODUIT",B5),"") -> 
B6: =INDEX('LISTE PRODUITS'!A4:A8,'STOCK TOTAL PAR ARTICLE'!$A$2) -> BOUCHONS MAUVES | C6: =IFERROR(GETPIVOTDATA("ENTREE_kg",'STOCK GLOBAL'!$B$4,"PRODUIT",B6),"") ->  | D6: =IFERROR(GETPIVOTDATA("SORTIE_kg",'STOCK GLOBAL'!$E$4,"PRODUIT",B6),"") -> 
B7: =INDEX('LISTE PRODUITS'!A5:A9,'STOCK TOTAL PAR ARTICLE'!$A$2) -> TUBES PP | C7: =IFERROR(GETPIVOTDATA("ENTREE_kg",'STOCK GLOBAL'!$B$4,"PRODUIT",B7),"") ->  | D7: =IFERROR(GETPIVOTDATA("SORTIE_kg",'STOCK GLOBAL'!$E$4,"PRODUIT",B7),"") -> 
B8: PORTOIRS | C8: =IFERROR(GETPIVOTDATA("ENTREE_kg",'STOCK GLOBAL'!$B$4,"PRODUIT",#REF!),"") ->  | D8: =IFERROR(GETPIVOTDATA("SORTIE_kg",'STOCK GLOBAL'!$E$4,"PRODUIT",#REF!),"") -> 
C9: =IFERROR(GETPIVOTDATA("ENTREE_kg",'STOCK GLOBAL'!$B$4,"PRODUIT",#REF!),"") ->  | D9: =IFERROR(GETPIVOTDATA("SORTIE_kg",'STOCK GLOBAL'!$E$4,"PRODUIT",#REF!),"") -> 
C10: =IFERROR(GETPIVOTDATA("ENTREE_kg",'STOCK GLOBAL'!$B$4,"PRODUIT",#REF!),"") ->  | D10: =IFERROR(GETPIVOTDATA("SORTIE_kg",'STOCK GLOBAL'!$E$4,"PRODUIT",#REF!),"") -> 
C11: =IFERROR(GETPIVOTDATA("ENTREE_kg",'STOCK GLOBAL'!$B$4,"PRODUIT",B11),"") ->  | D11: =IFERROR(GETPIVOTDATA("SORTIE_kg",'STOCK GLOBAL'!$E$4,"PRODUIT",B11),"") -> 
C12: =IFERROR(GETPIVOTDATA("ENTREE_kg",'STOCK GLOBAL'!$B$4,"PRODUIT",B12),"") ->  | D12: =IFERROR(GETPIVOTDATA("SORTIE_kg",'STOCK GLOBAL'!$E$4,"PRODUIT",B12),"") -> 
C13: =IFERROR(GETPIVOTDATA("ENTREE_kg",'STOCK GLOBAL'!$B$4,"PRODUIT",B13),"") ->  | D13: =IFERROR(GETPIVOTDATA("SORTIE_kg",'STOCK GLOBAL'!$E$4,"PRODUIT",B13),"") -> 
D14: =IFERROR(GETPIVOTDATA("SORTIE_kg",'STOCK GLOBAL'!$E$4,"PRODUIT",B14),"") -> 

Sheet LISTE PRODUITS
A1: ="LISTE PRODUITS" -> LISTE PRODUITS | B1: ATELIER | C1: REFERENCE | D1: POIDS (kg) | E1: ACTION
A2: BOUCHONS BLEUS | B2: INJECTION | C2: BC | D2: 0.0006 | E2: ENTREE
A3: BOUCHONS VERTS | B3: PRODATC | C3: BC | D3: 0.0006 | E3: SORTIE
A4: BOUCHONS MAUVES | C4: BC | D4: 0.0006 | E4: RETOUR
A5: TUBES PP | C5: TPP | D5: 0.002
A6: PORTOIRS | C6: PR
